fUST/lending_fUST_20240928
["ID","MTS","AMOUNT","RATE_DAILY","PERIOD"]
[339375529,1727508719240,-3696.79040726,0.00054795,120]
[339375530,1727508719250,-3450.33771344,0.00054795,120]
[339375531,1727508719259,-3450.33771344,0.00054795,120]
[339375532,1727508719269,-3450.33771344,0.00054795,120]
[339375533,1727508719279,-3450.33771344,0.00054795,120]
[339375534,1727508719289,-3450.33771344,0.00054795,120]
[339375535,1727508719298,-3450.33771344,0.00054795,120]
[339375536,1727508719308,-3450.33771344,0.00054795,120]
[339375537,1727508719318,-3450.33771344,0.00054795,120]
[339375538,1727508719328,-3450.33771344,0.00054795,120]
[339375539,1727508719338,-3450.33771344,0.00054795,120]
[339375540,1727508719347,-3929.16009,0.00054795,120]
[339375541,1727508719358,-3929.16009,0.00054795,120]
[339375542,1727508719367,-3377.69902474,0.00054795,120]
[339375543,1727508719377,-3929.16009,0.00054795,120]
[339375544,1727508719387,-3377.69902474,0.00054795,120]
[339375545,1727508719397,-3929.16009,0.00054795,120]
[339375546,1727508719406,-3929.16009,0.00054795,120]
[339375547,1727508719416,-3377.69902474,0.00054795,120]
[339375548,1727508719426,-3377.69902474,0.00054795,120]
[339375549,1727508719435,-3377.69902474,0.00054795,120]
[339375550,1727508719445,-3377.69902474,0.00054795,120]
[339375551,1727508719454,-3377.69902474,0.00054795,120]
[339375552,1727508719464,-3377.69902474,0.00054795,120]
[339375553,1727508719474,-3377.69902474,0.00054795,120]
[339375554,1727508719484,-3377.69902474,0.00054795,120]
[339375555,1727508719493,-3377.69902474,0.00054795,120]
[339375556,1727508719503,-3377.69902474,0.00054795,120]
[339375557,1727508719513,-3377.69902474,0.00054795,120]
[339375558,1727508719523,-3377.69902474,0.00054795,120]
[339375559,1727508719534,-3377.69902474,0.00054795,120]
[339375560,1727508719543,-3377.69902474,0.00054795,120]
[339375561,1727508719554,-5397.42517624,0.00054795,120]
[339375562,1727508719563,-3148.49801947,0.00054795,120]
[339375563,1727508719573,-3148.49801947,0.00054795,120]
[339375564,1727508719583,-3148.49801947,0.00054795,120]
[339375565,1727508719594,-3148.49801947,0.00054795,120]
[339375566,1727508719607,-165.47,0.000548,30]
[339375567,1727508719617,-501.45417705,0.00055,120]
[339375568,1727508719628,-1000.0,0.00055,120]
[339375569,1727508719638,-3498.25120628,0.00055,120]
[339375570,1727508719648,-40000.0,0.00055,30]
[339375571,1727508719658,-1000.0,0.00055,120]
[339375572,1727508719668,-521.03894645,0.00055,120]
[339375573,1727508719680,-18218.63,0.00055,30]
[339375574,1727508719691,-151.0,0.00055151,120]
[339375575,1727508719702,-150.0,0.00056,120]
[339375576,1727508719712,-359.676605,0.00056417,120]
[339375577,1727508719723,-151.0,0.00056521,120]
[339375578,1727508719734,-151.0,0.00056548,120]
[339375579,1727508719744,-400.0,0.00056957,2]
[339375580,1727508719754,-150.0,0.00057,120]
[339375581,1727508719764,-151.0,0.00057945,120]
[339375582,1727508719773,-200.0,0.00058,120]
[339375583,1727508719783,-300.0,0.00058,120]
[339375584,1727508719792,-151.0,0.00058932,120]
[339375585,1727508719802,-151.0,0.00059342,120]
[339375586,1727508719812,-2248.11,0.000594,30]
[339375587,1727508719822,-1137.64,0.000594,30]
[339375588,1727508719833,-402.5,0.00059829,30]
[339375589,1727508719843,-730.92521641,0.000599,120]
[339375590,1727508719853,-150.0,0.0006,120]
[339375591,1727508719864,-500.0,0.0006,120]
[339375592,1727508719874,-1000.0,0.0006,2]
[339375593,1727508719884,-1865.69221737,0.0006,120]
[339375594,1727508719894,-691.34503552,0.0006,12]
[339375595,1727508719903,-2000.0,0.0006,120]
[339375596,1727508719913,-3498.25120628,0.0006,120]
[339375597,1727508719924,-1000.0,0.0006,120]
[339375598,1727508719936,-2074.19271628,0.0006,120]
[339375599,1727508719947,-5000.0,0.0006,120]
[339375600,1727508719956,-396.8299997,0.0006,90]
[339375601,1727508719967,-151.0,0.0006074,120]
[339375602,1727508719978,-150.0,0.00061,120]
[339375603,1727508719989,-151.0,0.00061342,120]
[339375604,1727508720000,-1000.0,0.00061649,30]
[339375605,1727508720010,-1000.0,0.00061649,30]
[339375606,1727508720024,-1000.0,0.00061649,30]
[339375607,1727508720034,-359.676605,0.00061788,120]
[339375608,1727508720044,-161.0,0.0006189,120]
[339375609,1727508720053,-150.0,0.00062,120]
[339375610,1727508720063,-200.0,0.00062,120]
[339375611,1727508720073,-1000.0,0.00062,120]
[339375612,1727508720082,-151.0,0.00062137,120]
[339375613,1727508720092,-400.0,0.00062293,2]
[339375614,1727508720104,-827.22674085,0.00062718,28]
[339375615,1727508720114,-150.0,0.00063,120]
[339375616,1727508720126,-191.96,0.00063,30]
[339375617,1727508720137,-2000.0,0.00063052,120]
[339375618,1727508720148,-151.0,0.00063534,120]
[339375619,1727508720158,-151.0,0.00063753,120]
[339375620,1727508720169,-200.0,0.00064,120]
[339375621,1727508720180,-221.34912742,0.0006427,15]
[339375622,1727508720190,-450.1414622,0.000644,120]
[339375623,1727508720201,-151.0,0.00064932,120]
[339375624,1727508720212,-3498.25120628,0.00065,120]
[339375625,1727508720222,-1000.0,0.00065,120]
[339375626,1727508720233,-2177.0,0.00065,120]
[339375627,1727508720243,-2528.93,0.00065753,120]
[339375628,1727508720253,-2528.93,0.00065753,120]
[339375629,1727508720262,-2638.88,0.00065753,120]
[339375630,1727508720272,-237.60174204,0.00065753,120]
[339375631,1727508720281,-2528.93,0.00065753,120]
[339375632,1727508720290,-239.29296044,0.00065753,120]
[339375633,1727508720300,-3000.0,0.00065753,120]
[339375634,1727508720310,-1384.87,0.00065753,120]
[339375635,1727508720320,-2528.93,0.00065753,120]
[339375636,1727508720330,-3000.0,0.00065753,120]
[339375637,1727508720340,-3000.0,0.00065753,120]
[339375638,1727508720350,-3000.0,0.00065753,120]
[339375639,1727508720360,-3000.0,0.00065753,120]
[339375640,1727508720371,-3000.0,0.00065753,120]
[339375641,1727508720381,-3000.0,0.00065753,120]
[339375642,1727508720390,-3000.0,0.00065753,120]
[339375643,1727508720399,-3000.0,0.00065753,120]
[339375644,1727508720410,-3000.0,0.00065753,120]
[339375645,1727508720420,-3000.0,0.00065753,120]
[339375646,1727508720429,-3000.0,0.00065753,120]
[339375647,1727508720440,-3000.0,0.00065753,120]
[339375648,1727508720450,-3000.0,0.00065753,120]
[339375649,1727508720460,-1462.88,0.00065753,120]
[339375650,1727508720471,-2528.93,0.00065753,120]
[339375651,1727508720618,-229.59775876,0.00065753,120]
[339375652,1727508720627,-2033.52,0.00065753,120]
[339375653,1727508720637,-234.97001527,0.00065753,120]
[339375654,1727508720647,-229.97663716,0.00065753,120]
[339375655,1727508720659,-2528.93,0.00065753,120]
[339375656,1727508720670,-3000.0,0.00065753,120]
[339375657,1727508720680,-2057.98398502,0.00065753,120]
[339375658,1727508720689,-253.81472002,0.00065753,120]
[339375659,1727508720698,-3000.0,0.00065753,120]
[339375660,1727508720708,-3000.0,0.00065753,120]
[339375661,1727508720718,-3000.0,0.00065753,120]
[339375662,1727508720728,-3000.0,0.00065753,120]
[339375663,1727508720738,-3000.0,0.00065753,120]
[339375664,1727508720747,-3000.0,0.00065753,120]
[339375665,1727508720757,-3000.0,0.00065753,120]
[339375666,1727508720766,-3040.96,0.00065753,120]
[339375667,1727508720775,-231.11545884,0.00065753,120]
[339375668,1727508720784,-231.88647067,0.00065753,120]
[339375669,1727508720794,-500.0,0.00065753,120]
[339375670,1727508720804,-210.07968827,0.00065753,120]
[339375671,1727508720814,-241.57308486,0.00065753,120]
[339375672,1727508720823,-151.0,0.00066164,120]
[339375673,1727508720833,-151.0,0.00066329,120]
[339375674,1727508720843,-359.676605,0.00067159,120]
[339375675,1727508720853,-400.0,0.00067628,2]
[339375676,1727508720863,-1000.0,0.0006771,10]
[339375677,1727508720873,-151.0,0.00067726,120]
[339375678,1727508720883,-1000.0,0.00068,120]
[339375679,1727508720893,-336.01317005,0.00068008,2]
[339375680,1727508720903,-161.044977,0.0006802,120]
[339375681,1727508720914,-150.0,0.00068493,120]
[339375682,1727508720924,-151.029,0.000685,120]
[339375683,1727508720933,-151.0,0.00068575,120]
[339375684,1727508720945,-153.09472021,0.00068904,120]
[339375685,1727508720955,-2399.88,0.00069,30]
[339375686,1727508720966,-1192.55,0.00069,30]
[339375687,1727508720976,-3000.0,0.00069,120]
[339375688,1727508720986,-3000.0,0.0006901,120]
[339375689,1727508720997,-3000.0,0.0006902,120]
[339375690,1727508721006,-3000.0,0.0006903,120]
[339375691,1727508721016,-5583.357569,0.0006904,120]
[339375692,1727508721027,-151.0,0.00069123,120]
[339375693,1727508721038,-1092.35553195,0.000698,120]
[339375694,1727508721048,-1000.0,0.0007,71]
[339375695,1727508721058,-500.0,0.0007,120]
[339375696,1727508721070,-604.11656595,0.0007,120]
[339375697,1727508721080,-3498.25120628,0.0007,120]
[339375698,1727508721092,-1000.0,0.0007,120]
[339375699,1727508721103,-632.17150732,0.0007,120]
[339375700,1727508721113,-7777.0,0.0007,120]
[339375701,1727508721122,-2573.0,0.0007,120]
[339375702,1727508721132,-151.0,0.00070521,120]
[339375703,1727508721142,-2500.0,0.000706,120]
[339375704,1727508721152,-151.0,0.00070986,120]
[339375705,1727508721163,-412.2788661,0.00071178,60]
[339375706,1727508721173,-151.0,0.00071918,120]
[339375707,1727508721182,-1000.0,0.00072,120]
[339375708,1727508721192,-18218.63,0.00072,30]
[339375709,1727508721201,-180.06,0.00072,120]
[339375710,1727508721211,-827.22674085,0.00072014,28]
[339375711,1727508721221,-359.676605,0.00072531,120]
[339375712,1727508721231,-400.0,0.00072963,2]
[339375713,1727508721241,-1600.0,0.00073,120]
[339375714,1727508721250,-50000.0,0.00073123,120]
[339375715,1727508721260,-151.0,0.00073315,120]
[339375716,1727508721269,-151.0,0.00073397,120]
[339375717,1727508721279,-151.0,0.00074712,120]
[339375718,1727508721288,-1000.0,0.00075,2]
[339375719,1727508721298,-5072.9,0.00075,120]
[339375720,1727508721308,-3498.25120628,0.00075,120]
[339375721,1727508721317,-1000.0,0.00075,120]
[339375722,1727508721326,-166.314882,0.00075,60]
[339375723,1727508721336,-6903.05059402,0.00075444,120]
[339375724,1727508721345,-151.0,0.00075808,120]
[339375725,1727508721356,-1000.0,0.00076,120]
[339375726,1727508721366,-151.0,0.0007611,120]
[339375727,1727508721375,-151.0,0.00077507,120]
[339375728,1727508721385,-359.676605,0.00077902,120]
[339375729,1727508721394,-151.0,0.00078219,120]
[339375730,1727508721404,-400.0,0.00078299,2]
[339375731,1727508721413,-2000.0,0.00078608,60]
[339375732,1727508721423,-151.0,0.00078904,120]
[339375733,1727508721432,-1000.0,0.00079,120]
[339375734,1727508721443,-280.06855075,0.00079999,30]
[339375735,1727508721452,-500.0,0.0008,120]
[339375736,1727508721462,-669.91869165,0.0008,50]
[339375737,1727508721471,-100618.83705026,0.0008,120]
[339375738,1727508721482,-3498.25120628,0.0008,120]
[339375739,1727508721492,-1000.0,0.0008,120]
[339375740,1727508721503,-30300.72668106,0.0008,120]
[339375741,1727508721513,-1953.706396,0.0008,120]
[339375742,1727508721524,-151.0,0.00080301,120]
[339375743,1727508721534,-151.0,0.0008063,120]
[339375744,1727508721544,-412.2788661,0.00081178,60]
[339375745,1727508721553,-412.2788661,0.00081178,60]
[339375746,1727508721563,-827.22674085,0.00081309,28]
[339375747,1727508721573,-151.0,0.00081699,120]
[339375748,1727508721583,-300.0,0.00082191,120]
[339375749,1727508721594,-5620.43,0.00082191,120]
[339375750,1727508721604,-500.0,0.00082192,2]
[339375751,1727508721614,-151.0,0.00083041,120]
[339375752,1727508721624,-151.0,0.00083096,120]
[339375753,1727508721634,-359.676605,0.00083273,120]
[339375754,1727508721645,-336.01317005,0.00083579,2]
[339375755,1727508721654,-400.0,0.00083634,120]
[339375756,1727508721664,-153.09472021,0.00083904,120]
[339375757,1727508721676,-151.0,0.00084493,120]
[339375758,1727508721685,-3498.25120628,0.00085,120]
[339375759,1727508721695,-1000.0,0.00085,120]
[339375760,1727508721705,-2399.88,0.00085,60]
[339375761,1727508721714,-1192.55,0.00085,60]
[339375762,1727508721723,-151.0,0.00085452,120]
[339375763,1727508721732,-151.0,0.0008589,120]
[339375764,1727508721741,-1000.0,0.000863,120]
[339375765,1727508721751,-162.0,0.0008689,120]
[339375766,1727508721760,-151.0,0.00087288,120]
[339375767,1727508721769,-151.0,0.00087863,120]
[339375768,1727508721778,-10000.0,0.00088,120]
[339375769,1727508721788,-359.676605,0.00088645,120]
[339375770,1727508721797,-151.0,0.00088685,120]
[339375771,1727508721806,-568.99,0.000889,90]
[339375772,1727508721816,-400.0,0.00088969,120]
[339375773,1727508721825,-18218.63,0.00089,60]
[339375774,1727508721834,-500.0,0.0009,120]
[339375775,1727508721844,-3498.25120628,0.0009,120]
[339375776,1727508721855,-1000.0,0.0009,120]
[339375777,1727508721866,-500.0,0.0009,120]
[339375778,1727508721877,-600.0,0.0009,120]
[339375779,1727508721887,-600.0,0.0009,120]
[339375780,1727508721895,-600.0,0.0009,120]
[339375781,1727508721905,-600.0,0.0009,120]
[339375782,1727508721914,-600.0,0.0009,120]
[339375783,1727508721924,-600.0,0.0009,120]
[339375784,1727508721933,-600.0,0.0009,120]
[339375785,1727508721943,-600.0,0.0009,120]
[339375786,1727508721952,-350.0,0.00090082,120]
[339375787,1727508721962,-328.0,0.00090274,120]
[339375788,1727508721973,-827.22674085,0.00090605,28]
[339375789,1727508721984,-180.059,0.00091,120]
[339375790,1727508721994,-1446.06596685,0.00093,120]
[339375791,1727508722003,-261.46,0.00093,60]
[339375792,1727508722013,-359.676605,0.00094016,120]
[339375793,1727508722022,-400.0,0.00094304,120]
[339375794,1727508722032,-820.99713199,0.0009432,120]
[339375795,1727508722041,-6134.61194025,0.0009488,60]
[339375796,1727508722050,-24711.79644834,0.000949,120]
[339375797,1727508722060,-1000.0,0.00095,2]
[339375798,1727508722069,-10000.0,0.00095,120]
[339375799,1727508722079,-3498.25120628,0.00095,120]
[339375800,1727508722088,-1000.0,0.00095,120]
[339375801,1727508722098,-450.0,0.0009589,120]
[339375802,1727508722109,-575.7160967,0.00096,90]
[339375803,1727508722120,-31343.30933486,0.00096,120]
[339375804,1727508722130,-40000.0,0.00096,120]
[339375805,1727508722139,-1000.0,0.000963,120]
[339375806,1727508722148,-2000.0,0.00097412,120]
[339375807,1727508722157,-7052.45198095,0.000975,30]
[339375808,1727508722166,-1000.0,0.0009762,10]
[339375809,1727508722176,-153.09472021,0.00098904,120]
[339375810,1727508722185,-101080.82323277,0.00099,120]
[339375811,1727508722195,-678.9987,0.00099,90]
[339375812,1727508722204,-5304.52148178,0.00099,120]
[339375813,1727508722214,-1474.93353784,0.00099,120]
[339375814,1727508722223,-168.439999,0.00099,120]
[339375815,1727508722234,-336.01317005,0.00099149,2]
[339375816,1727508722244,-359.676605,0.00099387,120]
[339375817,1727508722253,-400.0,0.0009964,120]
[339375818,1727508722263,-150.0,0.00099838,120]
[339375819,1727508722272,-827.22674085,0.000999,28]
[339375820,1727508722282,-1000.0,0.00099999,120]
[339375821,1727508722292,-600.0,0.001,120]
[339375822,1727508722301,-500.0,0.001,120]
[339375823,1727508722310,-500.0,0.001,120]
[339375824,1727508722320,-200.0,0.001,120]
[339375825,1727508722329,-55433.839,0.001,120]
[339375826,1727508722338,-1000.0,0.001,2]
[339375827,1727508722347,-1000.0,0.001,120]
[339375828,1727508722361,-1132.59063631,0.001,120]
[339375829,1727508722371,-1998.23060988,0.001,120]
[339375830,1727508722380,-1000.00885317,0.001,120]
[339375831,1727508722389,-2000.0,0.001,120]
[339375832,1727508722398,-1000.0,0.001,120]
[339375833,1727508722408,-1000.0,0.001,120]
[339375834,1727508722417,-50000.0,0.001,120]
[339375835,1727508722426,-5078.0,0.001,120]
[339375836,1727508722436,-151.0,0.001,120]
[339375837,1727508722445,-50488.01976253,0.001,120]
[339375838,1727508722454,-151.0,0.001,120]
[339375839,1727508722464,-161.044977,0.00102335,120]
[339375840,1727508722475,-359.676605,0.00104759,120]
[339375841,1727508722485,-400.0,0.00104975,120]
[339375842,1727508722496,-600.0,0.00109589,120]
[339375843,1727508722506,-5620.43,0.00109589,120]
[339375844,1727508722517,-600.0,0.0011,120]
[339375845,1727508722528,-413.7357736,0.0011,120]
[339375846,1727508722538,-619.159474,0.0011,60]
[339375847,1727508722547,-180.06,0.0011,120]
[339375848,1727508722559,-359.676605,0.0011013,120]
[339375849,1727508722570,-400.0,0.0011031,120]
[339375850,1727508722581,-153.09472021,0.00113904,120]
[339375851,1727508722595,-336.01317005,0.00114719,2]
[339375852,1727508722606,-359.676605,0.00115501,120]
[339375853,1727508722618,-400.0,0.00115645,120]
[339375854,1727508722632,-1000.0,0.0012,120]
[339375855,1727508722643,-2399.88,0.0012,60]
[339375856,1727508722652,-1192.55,0.0012,60]
[339375857,1727508722663,-359.676605,0.00120873,120]
[339375858,1727508722672,-400.0,0.00120981,120]
[339375859,1727508722682,-2000.0,0.00122513,120]
[339375860,1727508722693,-750.0,0.00123287,120]
[339375861,1727508722703,-359.676605,0.00126244,120]
[339375862,1727508722712,-400.0,0.00126316,120]
[339375863,1727508722722,-153.09472024,0.00128904,120]
[339375864,1727508722731,-8138.41143234,0.0013,120]
[339375865,1727508722743,-506.74567616,0.0013,120]
[339375866,1727508722753,-204026.79935055,0.0013,120]
[339375867,1727508722763,-336.01317005,0.00130289,2]
[339375868,1727508722773,-359.676605,0.00131615,120]
[339375869,1727508722783,-400.0,0.00131651,120]
[339375870,1727508722793,-60000.0,0.0013333,120]
[339375871,1727508722803,-366.8243206,0.00134247,120]
[339375872,1727508722814,-412.2788661,0.00134247,120]
[339375873,1727508722828,-405.10054517,0.00135,110]
[339375874,1727508722838,-161.044977,0.00136651,120]
[339375875,1727508722848,-900.0,0.00136986,120]
[339375876,1727508722861,-300.0,0.00136986,120]
[339375877,1727508722871,-300.0,0.00136986,120]
[339375878,1727508722880,-300.0,0.00136986,120]
[339375879,1727508722890,-300.0,0.00136986,120]
[339375880,1727508722899,-300.0,0.00136986,120]
[339375881,1727508722909,-300.0,0.00136986,120]
[339375882,1727508722920,-300.0,0.00136986,120]
[339375883,1727508722930,-300.0,0.00136986,120]
[339375884,1727508722941,-300.0,0.00136986,120]
[339375885,1727508722956,-300.0,0.00136986,120]
[339375886,1727508722966,-300.0,0.00136986,120]
[339375887,1727508722978,-300.0,0.00136986,120]
[339375888,1727508722989,-300.0,0.00136986,120]
[339375889,1727508723001,-300.0,0.00136986,120]
[339375890,1727508723011,-300.0,0.00136986,120]
[339375891,1727508723021,-300.0,0.00136986,120]
[339375892,1727508723030,-300.0,0.00136986,120]
[339375893,1727508723043,-300.0,0.00136986,120]
[339375894,1727508723053,-300.0,0.00136986,120]
[339375895,1727508723063,-300.0,0.00136986,120]
[339375896,1727508723073,-300.0,0.00136986,120]
[339375897,1727508723084,-206.98127464,0.00136986,120]
[339375898,1727508723093,-5620.43,0.00136986,120]
[339375899,1727508723103,-400.0,0.00136986,120]
[339375900,1727508723116,-359.676605,0.00136986,120]
[339375901,1727508723126,-196.7524463,0.0014,120]
[339375902,1727508723135,-6290.82565264,0.001415,120]
[339375903,1727508723144,-336.01317005,0.0014586,2]
[339375904,1727508723155,-50000.0,0.0014646,120]
[339375905,1727508723165,-500.0,0.0015,120]
[339375906,1727508723174,-106057.21926657,0.0015,120]
[339375907,1727508723184,-5000.0,0.0015,120]
[339375908,1727508723193,-5000.0,0.0015,120]
[339375909,1727508723203,-710.9431218,0.0015,120]
[339375910,1727508723213,-460.0,0.0015,60]
[339375911,1727508723223,-203219.09103587,0.0015,120]
[339375912,1727508723233,-1998.23060988,0.0015,120]
[339375913,1727508723242,-5059.3,0.0015,120]
[339375914,1727508723449,-1108.77060225,0.00150684,120]
[339375915,1727508723460,-1593.66129622,0.00150684,120]
[339375916,1727508723471,-1000.0,0.00150684,7]
[339375917,1727508723480,-1000.0,0.00150684,7]
[339375918,1727508723490,-1000.0,0.00150684,7]
[339375919,1727508723500,-1000.0,0.00150684,7]
[339375920,1727508723510,-1000.0,0.00150684,7]
[339375921,1727508723520,-1000.0,0.00150684,7]
[339375922,1727508723530,-1000.0,0.00150684,7]
[339375923,1727508723540,-1000.0,0.00150684,7]
[339375924,1727508723551,-1000.0,0.00150684,7]
[339375925,1727508723561,-1000.0,0.00150684,7]
[339375926,1727508723572,-1000.0,0.00150684,7]
[339375927,1727508723581,-1000.0,0.00150684,7]
[339375928,1727508723593,-1000.0,0.00150684,7]
[339375929,1727508723605,-1000.0,0.00150684,7]
[339375930,1727508723619,-1000.0,0.00150684,7]
[339375931,1727508723629,-1000.0,0.00150684,7]
[339375932,1727508723639,-1000.0,0.00150684,7]
[339375933,1727508723649,-293.82547854,0.00150684,7]
[339375934,1727508723660,-336.01317005,0.0016143,2]
[339375935,1727508723669,-5620.43,0.00164383,120]
[339375936,1727508723679,-1600.0,0.0017,120]
[339375937,1727508723689,-10000.0,0.0017,120]
[339375938,1727508723699,-18218.63,0.0017,60]
[339375939,1727508723709,-161.044977,0.00170966,120]
[339375940,1727508723719,-1429279.955523,0.00171,120]
[339375941,1727508723730,-336.01317005,0.00177,2]
[339375942,1727508723740,-170.00000001,0.001771,5]
[339375943,1727508723750,-1228.4232281,0.00180952,120]
[339375944,1727508723759,-2000.0,0.0018096,120]
[339375945,1727508723769,-1000.0,0.001815,120]
[339375946,1727508723779,-1000.0,0.001863,120]
[339375947,1727508723789,-80000.0,0.0018888,120]
[339375948,1727508723799,-50000.0,0.0019,7]
[339375949,1727508723810,-5620.43,0.0019178,120]
[339375950,1727508723820,-156.68661675,0.001925,120]
[339375951,1727508723829,-1000.0,0.00194,120]
[339375952,1727508723839,-1000.0,0.001963,120]
[339375953,1727508723850,-161553.395473,0.00196814,60]
[339375954,1727508723860,-41000.87179277,0.00199,120]
[339375955,1727508723870,-1000.0,0.00199999,120]
[339375956,1727508723880,-500.0,0.002,120]
[339375957,1727508723890,-200.0,0.002,120]
[339375958,1727508723899,-500.0,0.002,120]
[339375959,1727508723908,-1000.0,0.002,120]
[339375960,1727508723918,-1000.0,0.002,120]
[339375961,1727508723928,-500.0,0.002,120]
[339375962,1727508723938,-1000.0,0.002,120]
[339375963,1727508723948,-1998.23060988,0.002,120]
[339375964,1727508723958,-50000.0,0.002,120]
[339375965,1727508723968,-5028.9,0.002,120]
[339375966,1727508723978,-7200.0,0.002,120]
[339375967,1727508723988,-5000.0,0.00208,120]
[339375968,1727508723999,-15000.0,0.0021,120]
[339375969,1727508724010,-5620.43,0.00219178,120]
[339375970,1727508724019,-53984.93334918,0.00229999,60]
[339375971,1727508724029,-366.8243206,0.00234247,120]
[339375972,1727508724039,-289.4902051,0.00234247,120]
[339375973,1727508724058,-5620.43,0.00246575,120]
[339375974,1727508724071,-1000.0,0.0025,120]
[339375975,1727508724082,-1998.23060988,0.0025,120]
[339375976,1727508724093,-2163.1632079,0.0025,120]
[339375977,1727508724105,-1000.0,0.0027,120]
[339375978,1727508724120,-5620.43,0.00273972,120]
[339375979,1727508724131,-727.83,0.00273972,120]
[339375980,1727508724142,-727.83,0.00273972,120]
[339375981,1727508724152,-727.83,0.00273972,120]
[339375982,1727508724161,-727.83,0.00273972,120]
[339375983,1727508724171,-727.83,0.00273972,120]
[339375984,1727508724180,-727.83,0.00273972,120]
[339375985,1727508724191,-727.83,0.00273972,120]
[339375986,1727508724201,-727.83,0.00273972,120]
[339375987,1727508724211,-727.83,0.00273972,120]
[339375988,1727508724221,-727.83,0.00273972,120]
[339375989,1727508724232,-727.83,0.00273972,120]
[339375990,1727508724242,-727.83,0.00273972,120]
[339375991,1727508724253,-727.83,0.00273972,120]
[339375992,1727508724263,-727.83,0.00273972,120]
[339375993,1727508724274,-727.83,0.00273972,120]
[339375994,1727508724285,-727.83,0.00273972,120]
[339375995,1727508724295,-727.83,0.00273972,120]
[339375996,1727508724305,-727.83,0.00273972,120]
[339375997,1727508724317,-727.83,0.00273972,120]
[339375998,1727508724327,-727.83,0.00273972,120]
[339375999,1727508724337,-727.83,0.00273972,120]
[339376000,1727508724347,-727.83,0.00273972,120]
[339376001,1727508724357,-727.83,0.00273972,120]
[339376002,1727508724373,-727.86624818,0.00273972,120]
[339376003,1727508724382,-270.46596638,0.00274317,120]
[339376004,1727508724392,-50000.0,0.0027888,120]
[339376005,1727508724402,-1000.0,0.0028,120]
[339376006,1727508724411,-1000.0,0.002863,120]
[339376007,1727508724421,-3648.47461633,0.00288,120]
[339376008,1727508724431,-156.68661675,0.002888,120]
[339376009,1727508724440,-1000.0,0.0029,120]
[339376010,1727508724450,-1000.0,0.002963,120]
[339376011,1727508724461,-10000.0,0.00297,120]
[339376012,1727508724473,-161553.395473,0.00297009,90]
[339376013,1727508724483,-18656.69066513,0.00298,120]
[339376014,1727508724494,-666.66666667,0.003,120]
[339376015,1727508724504,-600.0,0.003,120]
[339376016,1727508724513,-500.0,0.003,120]
[339376017,1727508724524,-500.0,0.003,120]
[339376018,1727508724533,-200.0,0.003,120]
[339376019,1727508724544,-2128.89927865,0.003,120]
[339376020,1727508724553,-1000.0,0.003,120]
[339376021,1727508724564,-1998.23060988,0.003,120]
[339376022,1727508724574,-50000.0,0.003,120]
[339376023,1727508724584,-1982.356187,0.003,120]
[339376024,1727508724595,-5620.43,0.00301369,120]
[339376025,1727508724607,-2000.0,0.0031,120]
[339376026,1727508724618,-645.16129032,0.0031,120]
[339376027,1727508724628,-625.0,0.0032,120]
[339376028,1727508724639,-1500.0,0.0032,120]